fUST/lending_fUST_20240213
["ID","MTS","AMOUNT","RATE_DAILY","PERIOD"]
[313929314,1707834639487,-577.5693934,0.00035616,14]
[313929316,1707834639495,-487.65756527,0.00035616,14]
[313929318,1707834639505,-500.0,0.00035616,14]
[313929320,1707834639514,-500.0,0.00035616,14]
[313929322,1707834639523,-500.0,0.00035616,14]
[313929324,1707834639532,-174.4,0.00035616,14]
[313929326,1707834639541,-500.0,0.00035616,14]
[313929328,1707834639550,-358.9376251,0.00035616,14]
[313929330,1707834639561,-500.0,0.00035616,14]
[313929332,1707834639570,-500.0,0.00035616,14]
[313929334,1707834639579,-86.97529737,0.00035616,14]
[313929500,1707834641721,-413.02470263,0.00035616,14]
[313929502,1707834641730,-500.0,0.00035616,14]
[313929504,1707834641739,-500.0,0.00035616,14]
[313929505,1707834641749,-577.05374795,0.00035616,14]
[313929506,1707834641758,-528.0022967,0.00035616,14]
[313929507,1707834641767,-500.0,0.00035616,14]
[313929508,1707834641776,-500.0,0.00035616,14]
[313929509,1707834641785,-500.0,0.00035616,14]
[313929510,1707834641794,-500.0,0.00035616,14]
[313929512,1707834641804,-500.0,0.00035616,14]
[313929514,1707834641813,-612.37907438,0.00035616,14]
[313929516,1707834641822,-500.0,0.00035616,14]
[313929518,1707834641832,-186.82,0.00035616,14]
[313929519,1707834641841,-500.0,0.00035616,14]
[313929521,1707834641850,-500.0,0.00035616,14]
[313929523,1707834641859,-500.0,0.00035616,14]
[313929524,1707834641868,-372.94365731,0.00035616,14]
[313929526,1707834641878,-500.0,0.00035616,14]
[313929528,1707834641887,-220.21444828,0.00035616,14]
[313929530,1707834641897,-564.90796769,0.00035616,14]
[313929531,1707834641906,-500.0,0.00035616,14]
[313929533,1707834641914,-500.0,0.00035616,14]
[313929534,1707834641923,-500.0,0.00035616,14]
[313929535,1707834641932,-500.0,0.00035616,14]
[313929537,1707834641944,-500.0,0.00035616,14]
[313929539,1707834641953,-506.03956091,0.00035616,14]
[313929541,1707834641962,-500.0,0.00035616,14]
[313929543,1707834641972,-500.0,0.00035616,14]
[313929544,1707834641981,-500.0,0.00035616,14]
[313929546,1707834641990,-500.0,0.00035616,14]
[313929548,1707834641999,-500.0,0.00035616,14]
[313929550,1707834642008,-502.24773133,0.00035616,14]
[313929552,1707834642017,-4864.76,0.00035616,14]
[313929553,1707834642026,-4864.76,0.00035616,14]
[313929555,1707834642035,-4864.76,0.00035616,14]
[313929556,1707834642044,-4864.76,0.00035616,14]
[313929558,1707834642054,-4864.76,0.00035616,14]
[313929560,1707834642063,-4864.76,0.00035616,14]
[313929562,1707834642072,-500.0,0.00035616,14]
[313929564,1707834642081,-500.0,0.00035616,14]
[313929565,1707834642091,-500.0,0.00035616,14]
[313929567,1707834642100,-500.0,0.00035616,14]
[313929569,1707834642110,-500.0,0.00035616,14]
[313929571,1707834642119,-500.0,0.00035616,14]
[313929573,1707834642128,-319.55,0.00035616,14]
[313929575,1707834642137,-500.0,0.00035616,14]
[313929576,1707834642147,-500.0,0.00035616,14]
[313929578,1707834642157,-500.0,0.00035616,14]
[313929580,1707834642166,-500.0,0.00035616,14]
[313929582,1707834642176,-500.0,0.00035616,14]
[313929583,1707834642186,-320.21505224,0.00035616,14]
[313929585,1707834642196,-2856.96,0.00035616,14]
[313929586,1707834642205,-2856.96,0.00035616,14]
[313929587,1707834642214,-2856.96,0.00035616,14]
[313929588,1707834642224,-2856.96,0.00035616,14]
[313929589,1707834642233,-2856.96,0.00035616,14]
[313929590,1707834642242,-500.0,0.00035616,14]
[313929591,1707834642251,-500.0,0.00035616,14]
[313929592,1707834642260,-500.0,0.00035616,14]
[313929593,1707834642269,-500.0,0.00035616,14]
[313929594,1707834642278,-500.0,0.00035616,14]
[313929595,1707834642287,-500.0,0.00035616,14]
[313929596,1707834642296,-500.0,0.00035616,14]
[313929597,1707834642304,-500.0,0.00035616,14]
[313929598,1707834642313,-500.0,0.00035616,14]
[313929599,1707834642325,-500.0,0.00035616,14]
[313929600,1707834642336,-500.0,0.00035616,14]
[313929601,1707834642344,-500.0,0.00035616,14]
[313929602,1707834642354,-500.0,0.00035616,14]
[313929603,1707834642363,-500.0,0.00035616,14]
[313929604,1707834642373,-550.18,0.00035616,14]
[313929605,1707834642383,-500.0,0.00035616,14]
[313929606,1707834642392,-500.0,0.00035616,14]
[313929607,1707834642401,-500.0,0.00035616,14]
[313929608,1707834642411,-500.0,0.00035616,14]
[313929609,1707834642420,-500.0,0.00035616,14]
[313929610,1707834642429,-500.0,0.00035616,14]
[313929611,1707834642440,-500.0,0.00035616,14]
[313929612,1707834642448,-500.0,0.00035616,14]
[313929613,1707834642461,-500.0,0.00035616,14]
[313929614,1707834642470,-500.0,0.00035616,14]
[313929615,1707834642479,-500.0,0.00035616,14]
[313929616,1707834642488,-500.0,0.00035616,14]
[313929617,1707834642497,-500.0,0.00035616,14]
[313929618,1707834642506,-1072.42,0.00035616,14]
[313929619,1707834642515,-1072.42,0.00035616,14]
[313929620,1707834642524,-1072.42,0.00035616,14]
[313929621,1707834642533,-1072.42,0.00035616,14]
[313929622,1707834642542,-1072.42,0.00035616,14]
[313929623,1707834642551,-1072.42,0.00035616,14]
[313929624,1707834642561,-500.0,0.00035616,14]
[313929625,1707834642571,-500.0,0.00035616,14]
[313929626,1707834642580,-500.0,0.00035616,14]
[313929627,1707834642589,-500.0,0.00035616,14]
[313929628,1707834642598,-500.0,0.00035616,14]
[313929629,1707834642607,-500.0,0.00035616,14]
[313929630,1707834642616,-301.78874788,0.00035746,4]
[313929631,1707834642626,-151.0,0.0003589,2]
[313929632,1707834642635,-500.0,0.0003589,14]
[313929633,1707834642645,-500.0,0.0003589,14]
[313929634,1707834642654,-2856.96,0.0003589,14]
[313929635,1707834642664,-2143.0,0.0003589,2]
[313929636,1707834642673,-447.0,0.0003589,2]
[313929638,1707834642682,-500.0,0.00035898,14]
[313929639,1707834642694,-4864.76,0.00035898,14]
[313929640,1707834642703,-500.0,0.00035898,14]
[313929641,1707834642712,-500.0,0.00035898,14]
[313929642,1707834642721,-500.0,0.00035898,14]
[313929643,1707834642732,-1072.42,0.00035898,14]
[313929644,1707834642742,-500.0,0.00035898,14]
[313929646,1707834642752,-14514.48451988,0.00035899,2]
[313929703,1707834644535,-268.6336481,0.00033414,4]
[313929704,1707834644545,-438.26669448,0.00035606,3]
[313929707,1707834644557,-2542.67,0.00035606,3]
[313929778,1707834646937,-1.84021501,0.00035606,3]
[313929779,1707834646953,-4136.49309051,0.00035606,3]
[313929780,1707834646964,-13345.07892812,0.00035899,2]
[313929781,1707834646973,-226.2738346,0.00035899,2]
[313929782,1707834646982,-500.0,0.00035997,14]
[313929783,1707834646991,-500.0,0.00035997,14]
[313929784,1707834647000,-2856.96,0.00035997,14]
[313929785,1707834647010,-238.05858939,0.00035998,14]
[313929786,1707834647018,-941.43647675,0.00035998,14]
[313929787,1707834647030,-3923.32352325,0.00035998,14]
[313929788,1707834647039,-500.0,0.00035998,14]
[313929789,1707834647049,-500.0,0.00035998,14]
[313929790,1707834647058,-500.0,0.00035998,14]
[313929791,1707834647067,-1072.42,0.00035998,14]
[313929792,1707834647076,-500.0,0.00035998,14]
[313929793,1707834647085,-154.309868,0.00035999,2]
[313929794,1707834647094,-151.0,0.00035999,2]
[313929795,1707834647103,-500.0,0.00035999,14]
[313929796,1707834647113,-500.0,0.00035999,14]
[313929797,1707834647122,-500.0,0.00035999,14]
[313929798,1707834647131,-500.0,0.00035999,14]
[313929799,1707834647140,-500.0,0.00035999,14]
[313929800,1707834647149,-6.44660875,0.00035999,14]
[313929801,1707834647161,-493.55339125,0.00035999,14]
[313929802,1707834647171,-285.74660875,0.00035999,14]
[313929803,1707834647226,-701.64203576,0.00035999,14]
[313929804,1707834760538,-537.82724361,0.00021999,2]
[313929805,1707834760563,-143.17275639,0.00022,4]
[313929806,1707834965173,200.0001,0.00016479,2]
[313929807,1707834991219,2785.97541082,0.00016479,2]
[313929808,1707834991253,7500.0,0.00016479,2]
[313929809,1707834991283,8500.0,0.00016479,2]
[313929810,1707834991312,9500.0,0.00016479,2]
[313929811,1707834991341,10000.0,0.00016479,2]
[313929812,1707834991372,9000.0,0.00016479,2]
[313929813,1707834991401,9000.0,0.00016479,2]
[313929814,1707834991432,9000.0,0.00016479,2]
[313929815,1707834991463,9000.0,0.00016479,2]
[313929816,1707834991492,9000.0,0.00016479,2]
[313929817,1707834991521,9000.0,0.00016479,2]
[313929818,1707834991552,9000.0,0.00016479,2]
[313929819,1707834991582,9000.0,0.00016479,2]
[313929820,1707834991611,9000.0,0.00016479,2]
[313929821,1707834991639,9000.0,0.00016479,2]
[313929822,1707834991667,95000.0,0.00016479,2]
[313929823,1707834991696,9000.0,0.00016479,2]
[313929824,1707834991724,53256.86462274,0.00016479,2]
[313929825,1707835007226,9736.3211926,0.00016479,2]
[313929826,1707835079037,-310.0,0.00021999,2]
[313929827,1707835145320,-20.86032515,0.00021999,2]
[313929828,1707835145342,-517.13967485,0.00021999,2]
[313929833,1707835212357,-690.59003309,0.00021998,2]
[313929834,1707835212377,-6.75041156,0.00021999,2]
[313929835,1707835212400,-209.65955535,0.00021999,2]
[313929836,1707835213185,-71.28153058,0.00021999,2]
[313929837,1707835213213,-5088.19553899,0.00021999,2]
[313929838,1707835213242,-151.22938733,0.00022,4]
[313929839,1707835213272,-164.22477025,0.00023509,2]
[313929840,1707835213300,-5525.06877285,0.00023607,2]
[313929841,1707835590698,-273.0,0.00022594,2]
[313929842,1707835590965,3172.87461135,0.00017705,5]
[313929843,1707835643093,-1747.38022649,0.00021746,2]
[313929844,1707835643115,-318.00182883,0.00021747,2]
[313929845,1707835653097,-154.8915759,0.00021746,2]
[313929846,1707835653118,-1588.23318982,0.00021746,2]
[313929847,1707835653143,-334.11346707,0.00021747,2]
[313929848,1707835653195,-2634.4974497,0.00021748,2]
[313929849,1707835653245,-686.8990302,0.00021748,2]
[313929850,1707835653327,-681.54066331,0.00021935,2]
[313929851,1707835653349,-294.82619206,0.00021936,2]
[313929852,1707835653369,-481.99435085,0.00021936,2]
[313929853,1707835653388,-37099.20039005,0.00021936,2]
[313929854,1707835653423,-244.01538949,0.00021937,2]
[313929855,1707835653446,-154.8915759,0.00021937,4]
[313929856,1707835653468,-537.82724361,0.00021937,2]
[313929857,1707835653488,-154.8915759,0.00021937,2]
[313929858,1707835653511,-907.14192831,0.00021937,2]
[313929859,1707835653533,-590.62215999,0.00021937,2]
[313929860,1707835653554,-166.666667,0.00021938,2]
[313929861,1707835653575,-299.64532062,0.00022592,2]
[313929862,1707835653597,-2608.46910477,0.00022592,2]
[313929863,1707835653620,-18555.73497644,0.00022592,2]
[313929864,1707835653641,-154.8915759,0.00022593,2]
[313929865,1707835653664,-718.7552593,0.00022595,2]
[313929866,1707835653687,-655.963043,0.00022596,2]
[313929867,1707835653713,-164.22477025,0.00023494,2]
[313929868,1707835653734,-280.94108593,0.00023579,2]
[313929869,1707835653756,-523.89008641,0.00023579,2]
[313929870,1707835653784,-6115.08830306,0.00023579,2]
[313929871,1707835653808,-8590.83,0.0002358,3]
[313929872,1707835653831,-7159.03,0.0002358,3]
[313929873,1707835653852,-5965.85,0.0002358,3]
[313929874,1707835653874,-4505.05,0.00023581,3]
[313929875,1707835653894,-18446.44825617,0.00023591,2]
[313929876,1707835653914,-1565.01155579,0.00023591,2]
[313929877,1707835653934,-1360.1574461,0.00023607,5]
[313929878,1707835653956,-617.81565462,0.00023613,2]
[313929879,1707835653980,-213.34299617,0.00023613,2]
[313929880,1707835654002,-200.0,0.00024774,7]
[313929881,1707835654025,-2760.6065354,0.00025,2]
[313929882,1707835654046,-6305.94327902,0.00025,2]
[313929883,1707835654068,-200.0,0.00025479,2]
[313929884,1707835654088,-169.1239231,0.00026964,2]
[313929885,1707835654108,-280.0,0.00027251,15]
[313929886,1707835654131,-24900.0,0.00027962,2]
[313929887,1707835654151,-309.73820307,0.00028,6]
[313929888,1707835654171,-250.0,0.00028064,2]
[313929889,1707835654192,-7965.0731739,0.00028202,2]
[313929890,1707835654213,-3547.1013321,0.00028428,2]
[313929891,1707835654234,-391.0,0.00029976,15]
[313929892,1707835654254,-250.0,0.00032876,5]
[313929893,1707835654278,-200.0,0.00032974,15]
[313929894,1707835654299,-348.0,0.00032974,15]
[313929895,1707835654319,-981.63485637,0.00033286,2]
[313929896,1707835654339,-7341.1458,0.00033346,7]
[313929897,1707835654360,-197.54412698,0.00033416,2]
[313929898,1707835654380,-500.0,0.00033424,5]
[313929899,1707835654400,-245.26018922,0.00033516,2]
[313929900,1707835654421,-655.963043,0.00033894,2]
[313929901,1707835654441,-560.93040657,0.00033972,5]
[313929902,1707835654461,-491.27110707,0.00034511,4]
[313929903,1707835654482,-169.123922,0.00034512,2]
[313929904,1707835654501,-1533.16044773,0.00035,4]
[313929905,1707835654524,-592.91812692,0.00035,2]
[313929906,1707835654545,-150.52568303,0.00035343,7]
[313929907,1707835654567,-23289.92939885,0.00035346,30]
[313929908,1707835654605,1019.25952196,0.00021745,2]
[313929909,1707835656181,299.64532062,0.00021745,2]
[313929910,1707835656441,1360.1574461,0.00017705,5]
[313929911,1707835694555,1070.2182514,0.00017705,5]
[313929915,1707835774116,-390.26214046,0.0002,2]
[313929990,1707835834904,-30.26444258,0.0002,2]
[313929992,1707835834914,-4300.30190479,0.000237,2]
[313930064,1707835838569,-651.90051268,0.000237,2]
[313930065,1707835838581,-956.06176621,0.000237,2]
[313930387,1707835841905,-2081.50314014,0.000237,2]
[313930389,1707835841915,-2510.18018964,0.00023701,2]
[313930391,1707835841927,-200.0,0.00024885,7]
[313930393,1707835841936,-280.0,0.00027374,15]
[313930395,1707835841945,-391.0,0.00030111,15]
[313930397,1707835841955,-154.8915759,0.00032233,5]
[313930399,1707835841963,-150.52568306,0.00032234,5]
[313930401,1707835841973,-6818.36241116,0.00032333,4]
[313930405,1707835842001,-539.25681353,0.00032333,4]
[313930407,1707835842013,-3400.90104178,0.00032333,4]
[313930409,1707835842024,-7062.71806342,0.00032333,4]
[313930411,1707835842035,-3541.25831984,0.00032333,4]
[313930456,1707835842608,-2723.8459543,0.00032333,4]
[313930459,1707835842622,-744.34842375,0.00032333,4]
[313930468,1707835842712,-773.68017149,0.00032333,4]
[313930470,1707835842722,-5000.0,0.00032334,7]
[313930472,1707835842731,-150.52568303,0.00033013,6]
[313930474,1707835842741,-200.0,0.00033122,15]
[313930477,1707835842750,-348.0,0.00033122,15]
[313930478,1707835842761,-166.46962257,0.00034993,4]
[313930481,1707835842770,-703.88303357,0.00034994,4]
[313930483,1707835842780,-8216.04954346,0.00034994,4]
[313930485,1707835842789,-154.8915759,0.00034995,4]
[313930486,1707835842798,-154.8915759,0.00034995,4]
[313930488,1707835842807,-1533.16044773,0.00035,4]
[313930490,1707835842817,-592.91812692,0.00035367,2]
[313930493,1707835842826,-2351.86139477,0.00035368,30]
[313930591,1707835843605,-154.8915759,0.00033012,4]
[313930593,1707835843614,-1009.3551356,0.00035368,30]
[313930595,1707835843625,-329.47296623,0.00035368,30]
[313930597,1707835843636,-3675.3075034,0.00035368,30]
[313930599,1707835843646,-184.97920657,0.00035516,2]
[313930601,1707835843656,-200.0,0.0003554,2]
[313930603,1707835843665,-3040.25926994,0.00035596,3]
[313930606,1707835843680,-355.0802872,0.00035596,3]
[313930900,1707835846557,-150.0,0.000356,24]
[313930902,1707835846566,-378.36,0.00035606,3]
[313930904,1707835846578,-2498.69,0.00035606,3]
[313930906,1707835846587,-204.37139353,0.00035616,14]
[313930908,1707835846597,-450.69066606,0.00035616,14]
[313930910,1707835846606,-454.47444014,0.00035616,14]
[313930912,1707835846615,-298.26227829,0.00035616,2]
[313930914,1707835846624,-500.0,0.00035616,14]
[313930916,1707835846633,-500.0,0.00035616,14]
[313930918,1707835846642,-500.0,0.00035616,14]
[313930920,1707835846650,-421.73071136,0.00035616,14]
[313930922,1707835846664,-500.0,0.00035616,14]
[313930924,1707835846673,-500.0,0.00035616,14]
[313930926,1707835846683,-500.0,0.00035616,14]
[313930928,1707835846692,-500.0,0.00035616,14]
[313930930,1707835846703,-500.0,0.00035616,14]
[313930932,1707835846712,-735.78,0.00035616,14]
[313930934,1707835846720,-735.78,0.00035616,14]
[313930936,1707835846729,-735.78,0.00035616,14]
[313930938,1707835846738,-2023.68,0.00035616,14]
[313930940,1707835846748,-2023.68,0.00035616,14]
[313930942,1707835846758,-2023.68,0.00035616,14]
[313930944,1707835846767,-500.0,0.00035616,14]
[313930946,1707835846777,-535.41027973,0.00035616,14]
[313930948,1707835846785,-505.88080911,0.00035616,14]
[313930950,1707835846794,-500.0,0.00035616,14]
[313930952,1707835846803,-500.0,0.00035616,14]
[313930954,1707835846812,-500.0,0.00035616,14]
[313930956,1707835846822,-500.0,0.00035616,14]
[313930957,1707835846831,-500.0,0.00035616,14]
[313930959,1707835846839,-500.0,0.00035616,14]
[313930961,1707835846848,-573.92,0.00035616,14]
[313930963,1707835846857,-573.92,0.00035616,14]
[313930965,1707835846866,-573.92,0.00035616,14]
[313930967,1707835846875,-573.92,0.00035616,14]
[313930969,1707835846884,-573.92,0.00035616,14]
[313930971,1707835846893,-507.26532812,0.00035616,14]
[313930973,1707835846902,-500.0,0.00035616,14]
[313930975,1707835846910,-500.0,0.00035616,14]
[313930977,1707835846919,-500.0,0.00035616,14]
[313930979,1707835846932,-500.0,0.00035616,14]
[313930981,1707835846941,-500.0,0.00035616,14]
[313930984,1707835846950,-500.0,0.00035616,14]
[313930985,1707835846959,-502.05120321,0.00035616,14]
[313930987,1707835846968,-500.0,0.00035616,14]
[313930989,1707835846977,-3584.53,0.00035616,14]
[313930991,1707835846986,-3584.53,0.00035616,14]
[313930993,1707835846995,-3584.53,0.00035616,14]
[313930995,1707835847004,-3584.53,0.00035616,14]
[313930998,1707835847014,-3584.53,0.00035616,14]
[313931000,1707835847023,-337.90603002,0.00035616,14]
[313931002,1707835847032,-500.0,0.00035616,14]
[313931004,1707835847041,-500.0,0.00035616,14]
[313931006,1707835847050,-500.0,0.00035616,14]
[313931008,1707835847060,-500.0,0.00035616,14]
[313931010,1707835847069,-500.0,0.00035616,14]
[313931012,1707835847078,-500.0,0.00035616,14]
[313931014,1707835847087,-500.0,0.00035616,14]
[313931016,1707835847095,-500.0,0.00035616,14]
[313931018,1707835847104,-500.0,0.00035616,14]
[313931020,1707835847113,-500.0,0.00035616,14]
[313931022,1707835847122,-200.0,0.00035639,2]
[313931024,1707835847131,-200.0,0.00035639,2]
[313931026,1707835847140,-200.0,0.00035639,2]
[313931028,1707835847149,-200.0,0.00035639,2]
[313931030,1707835847158,-200.0,0.00035639,2]
[313931031,1707835847167,-200.0,0.00035639,2]
[313931034,1707835847182,-200.0,0.00035639,2]
[313931036,1707835847191,-201.67865,0.00035639,2]
[313931038,1707835847202,-500.0,0.00035654,3]
[313931040,1707835847211,-306.0,0.00035766,3]
[313931042,1707835847220,-500.0,0.00035888,14]
[313931044,1707835847230,-735.78,0.00035898,14]
[313931046,1707835847239,-500.0,0.00035898,14]
[313931048,1707835847248,-500.0,0.00035898,14]
[313931050,1707835847258,-500.0,0.00035899,14]
[313931052,1707835847267,-500.0,0.00035899,14]
[313931054,1707835847276,-735.78,0.00035899,14]
[313931056,1707835847286,-735.78,0.00035899,14]
[313931058,1707835847295,-2023.68,0.00035899,14]
[313931060,1707835847304,-2023.68,0.00035899,14]
[313931062,1707835847313,-316.96,0.00035899,14]
[313931064,1707835847322,-573.92,0.00035899,14]
[313931066,1707835847331,-573.92,0.00035899,14]
[313931068,1707835847339,-573.92,0.00035899,14]
[313931070,1707835847348,-500.0,0.00035899,14]
[313931072,1707835847358,-500.0,0.00035899,14]
[313931074,1707835847367,-3584.53,0.00035899,14]
[313931076,1707835847376,-3584.53,0.00035899,14]
[313931078,1707835847385,-3584.53,0.00035899,14]
[313931080,1707835847398,-500.0,0.00035899,14]
[313931082,1707835847406,-500.0,0.00035899,14]
[313931084,1707835847416,-500.0,0.00035899,14]
[313931086,1707835847433,-274.13965075,0.00035899,14]
[313931088,1707835847442,-32853.80855968,0.000359,2]
[313931112,1707835847648,-11096.74058178,0.000359,2]
[313931115,1707835847662,-2447.5,0.000359,2]
[313931163,1707835848233,-490.16024973,0.000359,2]
[313931717,1707835975892,-154.8915759,0.0001999,2]
[313931718,1707835975912,-500.0,0.00019991,2]
[313931719,1707835975932,-154.8915759,0.00019991,2]
[313931720,1707835975952,-563.70112892,0.00019991,2]
[313931721,1707835975972,-175.87607828,0.00019992,2]
[313931722,1707835975992,-154.8915759,0.00019992,2]
[313931723,1707835976012,-161.66447433,0.00019992,2]
[313931724,1707835976034,-262.11608468,0.00019993,2]
[313931725,1707835976055,-8968.96750609,0.00019993,2]
[313931726,1707835980398,164.84303522,0.00019992,30]
[313931727,1707836045037,-258.08936658,0.00019988,2]
[313931728,1707836045064,-154.8915759,0.00019989,2]
[313931729,1707836045097,-1963.02059646,0.00019989,2]
[313931730,1707836045124,-3333.29446079,0.00019991,2]
[313931731,1707836045151,-3552.45362534,0.00019992,2]
[313931732,1707836045174,-200.0,0.00019992,2]
[313931733,1707836045200,-11981.89253893,0.00019993,2]
[313931734,1707836045225,-2571.52047094,0.00019998,2]
[313931735,1707836045252,-524.1298831,0.0002,2]
[313931736,1707836045277,-200.0,0.0002,2]
[313931737,1707836045302,-200.0,0.0002,2]
[313931738,1707836045330,-200.0,0.0002,2]
[313931739,1707836045354,-200.0,0.0002,2]
[313931740,1707836045375,-200.0,0.0002,2]
[313931741,1707836045397,-186.70748196,0.0002,2]
[313931743,1707836111471,-244.01538949,0.0001999,2]
[313931744,1707836111492,-537.82724361,0.00019991,2]
[313931745,1707836111513,-200.0,0.00019992,2]
[313931746,1707836111533,-276.95930983,0.00019992,2]
[313931747,1707836111555,-13.29251804,0.0002,2]
[313931748,1707836111575,-200.0,0.0002,2]
[313931749,1707836111601,-200.0,0.0002,2]
[313931750,1707836111622,-236.90553903,0.0002,2]
[313931798,1707836970133,-166.46962257,0.00023388,2]
[313931799,1707836970153,-1588.23318982,0.00023389,2]
[313931800,1707836970172,-2826.77529944,0.00023389,2]
[313931801,1707836970191,-523.89008641,0.0002339,2]
[313931802,1707836970211,-154.8915759,0.0002339,4]
[313931803,1707836970230,-306.80283498,0.00023391,2]
[313931804,1707836970257,-7989.76732382,0.00023391,2]
[313931805,1707836970285,-563.70112892,0.00023392,2]
[313931806,1707836970305,-907.14192831,0.00023392,2]
[313931807,1707836970325,-154.8915759,0.00023393,2]
[313931808,1707836970347,-84.61746525,0.00023418,2]
[313931865,1707837032633,-481.99435085,0.00023417,2]
[313931867,1707837032642,-184.26861975,0.00023418,2]
[313931869,1707837032652,-4538.08619546,0.00023803,2]
[313931871,1707837032661,-2675.41023676,0.00023999,2]
[313932002,1707837038723,-151.36506268,0.00023999,2]
[313932004,1707837038733,-24900.0,0.00025781,2]
[313932006,1707837038742,-200.0,0.00027069,15]
[313932008,1707837038751,-567.67721481,0.000275,2]
[313932010,1707837038761,-620.14713681,0.0002839,2]
[313932012,1707837038770,-154.8915759,0.00028798,4]
[313932014,1707837038779,-11100.85311126,0.000289,2]
[313932016,1707837038788,-280.0,0.00029776,15]
[313932018,1707837038798,-620.00735684,0.0002981,2]
[313932021,1707837038815,-4391.16,0.0003199,3]
[313932023,1707837038829,-3659.3,0.0003199,3]
[313932025,1707837038838,-3049.42,0.0003199,3]
[313932027,1707837038848,-537.19497093,0.00031998,4]
[313932029,1707837038857,-243.71734601,0.00031998,4]
[313932031,1707837038867,-703.88303357,0.00031998,4]
[313932033,1707837038877,-503.22834001,0.00031998,4]
[313932035,1707837038886,-155.76510919,0.00031998,4]
[313932037,1707837038896,-204.53522332,0.00031998,4]
[313932039,1707837038909,-166.46962257,0.00031998,4]
[313932040,1707837038919,-4381.36877703,0.00031998,2]
[313932041,1707837038928,-562.86398418,0.00031998,4]
[313932042,1707837038937,-154.9690062,0.00031999,4]
[313932043,1707837038946,-1587.73592966,0.00031999,4]
[313932044,1707837038955,-20643.12479945,0.00032,15]
[313932045,1707837038968,-18804.13440448,0.00032,15]
[313932060,1707837041903,-1485.05,0.0003199,3]
[313932061,1707837041921,-1056.13,0.0003199,3]
[313932062,1707837041931,-7560.49791472,0.00032,15]
[313932063,1707837041943,-3775.8881189,0.00032,15]
[313932064,1707837041969,-4876.15,0.00032,15]
[313932065,1707837041981,-4344.7365929,0.00032,15]
[313932066,1707837041994,-1661.35278873,0.00032,15]
[313932098,1707837043711,-275.58271319,0.00032,15]
[313932117,1707837047055,-20054.806096,0.00032,15]
[313932118,1707837047078,-24261.15697498,0.00032,15]
[313932119,1707837047106,-2430.0,0.00032,15]
[313932120,1707837325684,-258.08936658,0.00019999,2]
[313932121,1707837325709,-154.8915759,0.00019999,2]
[313932122,1707837325732,-269.01905752,0.0002,2]
[313932123,1707837391068,-232.66777038,0.00019999,2]
[313932124,1707837391089,-110.98094248,0.0002,2]
[313932125,1707837391127,-154.8915759,0.0002,2]
[313932126,1707837391157,-596.45971124,0.0002,2]
[313932135,1707837458617,-718.7552593,0.00019999,2]
[313932137,1707837458638,-574.2447407,0.00019999,2]
[313932848,1707837526888,-154.8915759,0.00019997,3]
[313932849,1707837526910,-523.89008641,0.00019998,2]
[313932850,1707837526931,-16.37741929,0.00019999,2]
[313932851,1707837526952,-323.8409184,0.00019999,2]
[313932852,1707837594951,-154.8915759,0.00019998,2]
[313932853,1707837594974,-170.44601944,0.00019998,2]
[313932854,1707837594998,-158.15343245,0.00019999,2]
[313932855,1707837595019,-120.50897221,0.0002,2]
[313932858,1707837659512,-35.38495352,0.0002,2]
[313932859,1707837659532,-324.33055598,0.0002,2]
[313932860,1707837661238,1000.2844905,0.00019999,2]
[313932861,1707837725233,-18.97503146,0.00019999,2]
[313932862,1707837725264,-330.86032515,0.00019999,2]
[313932863,1707837725288,-720.16464339,0.0002,5]